bitfinex/quotes_ETHUSD_20240902
["timestamp","ask_amount","ask_price","bid_price","bid_amount"]
[1725316404564,3.0,2552.6,2552.2,0.10195737]
[1725316405659,3.543845,2552.7,2552.2,0.10195737]
[1725316405870,0.3677695,2552.6,2552.2,0.10195737]
[1725316407590,3.5018395,2552.6,2552.2,0.10195737]
[1725316410139,3.13418,2552.5,2552.2,0.10195737]
[1725316410465,3.13418,2552.5,2552.0,0.07835825]
[1725316410778,3.5018395,2552.6,2552.3,0.10008533]
[1725316411081,3.5018395,2552.6,2552.4,0.09995138]
[1725316411291,3.5018395,2552.6,2552.1,3.13467]
[1725316411495,3.5018395,2552.6,2552.0,0.07835825]
[1725316411496,3.5018395,2552.6,2552.5,0.09983825]
[1725316411778,6.5018395,2552.6,2552.0,0.07835806]
[1725316411954,3.13443,2552.3,2551.8,2.2624]
[1725316412158,3.13443,2552.3,2552.1,0.10029084]
[1725316412380,3.13443,2552.3,2551.8,2.2624]
[1725316412875,6.26893,2552.3,2551.9,0.10051718]
[1725316413085,3.1347,2552.1,2551.9,0.10051718]
[1725316413277,3.1347,2552.1,2551.6,3.13527]
[1725316413278,6.96628985,2552.3,2551.7,3.21344897]
[1725316413490,3.13443,2552.3,2552.0,0.10040401]
[1725316413798,3.13443,2552.3,2551.6,3.13518]
[1725316413799,3.13467,2552.1,2551.6,3.13518]
[1725316414091,3.13467,2552.1,2551.6,6.2704]
[1725316414385,3.13467,2552.1,2551.6,3.13518]
[1725316416213,3.13492,2551.9,2551.4,3.13543]
[1725316416491,3.13492,2551.9,2551.4,6.27089]
[1725316416963,0.313467,2552.1,2551.4,3.13543]
[1725316417202,3.13491,2552.0,2551.4,3.13543]
[1725316417494,6.26978,2552.0,2551.4,3.13543]
[1725316418394,4.0291847,2552.0,2551.4,3.13543]
[1725316419996,3.135,2551.9,2551.4,3.13543]
[1725316420384,3.13504,2551.8,2551.3,2.3246]
[1725316420601,3.13504,2551.8,2551.3,5.46017]
[1725316422179,7.1640947,2552.0,2551.4,3.13553]
[1725316422479,0.71640947,2551.9,2551.4,3.13553]
[1725316423571,6.26973,2552.0,2551.4,3.13553]
[1725316423973,6.26972,2552.0,2551.4,3.13553]
[1725316424188,3.13505,2551.8,2551.3,5.46023]
[1725316427094,3.13505,2551.8,2551.4,0.10173333]
[1725316428668,8.7077,2551.8,2551.2,3.13567]
[1725316428874,3.13518,2551.7,2551.5,0.10164612]
[1725316429204,4.3686472,2551.7,2551.2,3.13567]
[1725316429804,4.3686472,2551.7,2551.3,0.10187257]
[1725316430160,4.3686472,2551.7,2551.2,3.13567]
[1725316430372,4.3686472,2551.7,2551.4,0.10175934]
[1725316430597,4.3686472,2551.7,2551.3,0.10187257]
[1725316430901,4.3686472,2551.7,2551.4,0.10175934]
[1725316431200,4.3686472,2551.7,2551.2,3.13567]
[1725316431362,4.3686472,2551.7,2551.5,0.10164612]
[1725316431564,0.99411972,2551.6,2551.2,3.13567]
[1725316431788,4.3686472,2551.7,2551.2,3.13567]
[1725316432879,3.13529,2551.6,2551.2,3.13567]
[1725316433065,3.13529,2551.6,2551.0,7.22913371]
[1725316433266,3.13529,2551.6,2551.1,3.13588]
[1725316433467,3.13529,2551.6,2551.1,6.27171]
[1725316433765,1.2334672,2551.7,2551.2,3.13573]
[1725316433969,8.70775,2551.8,2551.2,3.13573]
[1725316434199,5.57262,2551.8,2551.2,3.13573]
[1725316434502,3.13511,2551.8,2551.2,3.13573]
[1725316434730,6.27024,2551.8,2551.2,3.13573]
[1725316434879,3.13511,2551.8,2551.3,2.258]
[1725316435496,3.0,2551.9,2551.3,2.258]
[1725316435806,6.13499,2551.9,2551.4,3.13552]
[1725316436030,3.1351,2551.8,2551.3,2.258]
[1725316436309,3.1351,2551.8,2551.3,5.39364]
[1725316436870,3.1351,2551.8,2551.2,3.13577]
[1725316437179,3.13519,2551.7,2551.2,3.13577]
[1725316438114,4.1011281,2551.8,2551.2,3.13577]
[1725316438403,3.1351,2551.8,2551.3,3.13563]
[1725316441216,7.433437,2551.8,2551.3,3.13563]
[1725316441419,4.298297,2551.8,2551.3,3.13563]
[1725316441948,4.298297,2551.8,2551.4,0.1020247]
[1725316443164,3.13516,2551.7,2551.4,0.1020247]
[1725316443449,3.13516,2551.7,2551.2,3.13577]
[1725316443657,3.13516,2551.7,2551.5,0.10191148]
[1725316444061,4.062186,2551.7,2551.6,0.10179827]
[1725316444357,6.424186,2551.7,2551.1,3.13583]
[1725316444549,5.49716,2551.7,2551.1,3.13583]
[1725316444866,5.49716,2551.7,2551.2,3.23795117]
[1725316445072,5.49716,2551.7,2551.3,3.13564]
[1725316445275,3.13507,2551.8,2551.4,2.258]
[1725316445581,5.49672,2552.1,2551.6,3.13526]
[1725316445883,8.63148,2552.1,2551.6,0.89442699]
[1725316446038,3.13481,2552.0,2551.7,0.10171628]
[1725316446235,3.13436,2552.4,2551.9,3.13487]
[1725316446647,3.13436,2552.4,2552.0,0.10135591]
[1725316446871,3.55604693,2552.4,2552.0,0.10135591]
[1725316447081,3.13443,2552.3,2552.0,0.10135591]
[1725316448393,3.13443,2552.3,2551.8,5.60182]
[1725316448851,3.13443,2552.3,2551.9,0.1010945]
[1725316450750,3.1343,2552.4,2551.9,3.2359945]
[1725316450950,3.0,2552.3,2551.9,3.2359945]
[1725316451475,6.13444,2552.3,2551.9,0.09990556]
[1725316451652,0.613444,2552.2,2551.9,0.09990556]
[1725316452093,0.613444,2552.2,2551.7,3.13508]
[1725316452280,0.613444,2552.2,2552.0,0.10085326]
[1725316452480,0.613444,2552.2,2551.7,3.13508]
[1725316452693,0.613444,2552.2,2552.1,0.10074009]
[1725316452998,0.613444,2552.2,2551.7,3.13508]
[1725316453146,0.613444,2552.2,2552.1,0.10074009]
[1725316453351,0.613444,2552.2,2551.7,6.27018]
[1725316453575,0.613444,2552.2,2552.1,0.10074009]
[1725316453779,0.613444,2552.2,2551.7,6.27018]
[1725316454052,0.613444,2552.2,2551.7,3.13508]
[1725316454248,0.613444,2552.2,2551.8,0.10107962]
[1725316454685,0.613444,2552.2,2551.9,0.10096644]
[1725316454916,0.613444,2552.2,2551.7,3.13508]
[1725316455091,0.613444,2552.2,2552.0,0.10085326]
[1725316455419,0.613444,2552.2,2551.7,3.13508]
[1725316455420,3.747994,2552.2,2551.7,3.13508]
[1725316455618,3.747994,2552.2,2552.1,0.10074009]
[1725316455787,3.747994,2552.2,2551.6,2.4106]
[1725316455788,3.13481,2552.0,2551.6,2.4106]
[1725316456689,6.4837734,2552.1,2551.6,2.4106]
[1725316456930,4.1229734,2552.1,2551.6,2.4106]
[1725316457091,7.2577034,2552.1,2551.6,5.54584]
[1725316457440,4.1229734,2552.1,2551.6,5.54584]
[1725316457829,7.2577234,2552.1,2551.6,5.54584]
[1725316458740,7.2577234,2552.1,2551.6,2.4106]
[1725316459162,7.2577234,2552.1,2551.7,0.10135406]
[1725316460353,0.6905823,2552.0,2551.7,0.10135406]
[1725316461106,3.8253723,2552.0,2551.7,0.10135406]
[1725316462252,3.13502,2551.9,2551.7,0.10135406]
[1725316462434,3.8253723,2552.0,2551.7,0.10135406]
[1725316462637,3.13504,2551.8,2551.7,0.10135406]
[1725316462952,3.13504,2551.8,2551.4,2.3691]
[1725316463114,3.13504,2551.8,2551.7,0.10134366]
[1725316463313,3.13504,2551.8,2551.4,2.3691]
[1725316463515,3.13524,2551.7,2551.1,2.3691]
[1725316463751,3.13524,2551.7,2551.1,2.7623]
[1725316464251,3.13543,2551.5,2551.1,2.7623]
[1725316465755,3.13543,2551.5,2551.1,2.3691]
[1725316466053,3.13543,2551.5,2551.1,2.7623]
[1725316467946,3.13543,2551.5,2551.0,3.13595]
[1725316468151,3.762498,2551.5,2550.9,5.93253]
[1725316468666,3.762498,2551.5,2551.0,3.13602]
[1725316471941,3.762498,2551.5,2551.1,0.10230921]
[1725316472144,3.13543,2551.5,2551.1,0.10230921]
[1725316476362,3.13543,2551.5,2551.1,3.23819921]
[1725316476650,3.13543,2551.5,2551.1,0.10230921]
[1725316483789,3.13543,2551.5,2551.1,3.23819921]
[1725316485433,2.4925,2551.8,2551.2,1.38412371]
[1725316485639,5.3315,2552.0,2551.3,5.94727297]
[1725316485801,8.46636,2552.0,2551.5,3.13531]
[1725316486145,8.46636,2552.0,2551.6,0.10190435]
[1725316487230,9.626468,2552.0,2551.6,0.10190435]
[1725316487838,3.13492,2551.9,2551.6,0.10190435]
[1725316489697,3.13492,2551.9,2551.4,3.13551]
[1725316489893,3.13492,2551.9,2551.7,0.10179115]
[1725316490099,3.13492,2551.9,2551.4,3.13551]
[1725316490602,3.13492,2551.9,2551.5,0.10201757]
[1725316497167,9.626398,2552.0,2551.5,3.23741757]
[1725316500265,6.491608,2552.0,2551.5,6.37281757]
[1725316500487,6.491608,2552.0,2551.5,6.37275757]
[1725316500804,3.13411,2552.6,2552.1,3.1346]
[1725316501024,3.13407,2552.6,2552.2,0.10097549]
[1725316501482,6.26819,2552.6,2552.2,0.10097549]
[1725316501690,3.13407,2552.6,2552.2,0.10097549]
[1725316501923,4.12942737,2552.6,2552.2,0.10097549]
[1725316502084,3.0,2552.5,2552.2,0.10097549]
[1725316502823,3.13431,2552.4,2552.2,0.10097549]
[1725316502991,5.43592,2552.3,2551.8,3.13501]
[1725316503190,6.73135537,2552.3,2551.8,3.13501]
[1725316503703,3.59693537,2552.3,2551.8,3.13501]
[1725316504940,6.73136537,2552.3,2551.8,3.13501]
[1725316505222,6.73136537,2552.3,2551.7,3.13507]
[1725316505223,3.13456,2552.2,2551.7,3.13507]
[1725316505717,3.13456,2552.2,2551.7,6.27016]
[1725316506212,3.13456,2552.2,2551.7,3.13507]
[1725316506384,4.25955291,2552.2,2551.7,3.13507]
[1725316509210,5.44135,2552.0,2551.5,10.41534]
[1725316509409,8.57622,2552.0,2551.5,3.13534]
[1725316509902,5.44135,2552.0,2551.5,3.13534]
[1725316511297,8.57624,2552.0,2551.5,3.13534]
[1725316511504,3.992554,2551.9,2551.5,3.13534]
[1725316511702,0.857624,2551.9,2551.5,3.13534]
[1725316513537,3.992544,2551.9,2551.5,3.13534]
[1725316514029,3.992544,2551.9,2551.4,3.13553]
[1725316514030,0.857624,2551.9,2551.4,3.13553]
[1725316514237,0.857624,2551.9,2551.5,3.1354]
[1725316516717,5.44135,2552.0,2551.5,3.13532]
[1725316516915,2.3509,2552.2,2551.8,3.135]
[1725316517230,2.3509,2552.2,2551.9,3.23591845]
[1725316517625,2.3509,2552.4,2551.9,3.23591845]
[1725316517928,0.53509,2552.3,2551.9,0.10101845]
[1725316518100,3.53509,2552.3,2551.9,0.10101845]
[1725316521206,6.66953,2552.3,2551.9,0.10101845]
[1725316521633,6.66953,2552.3,2551.7,3.13504]
[1725316521848,6.66953,2552.3,2552.0,0.10084284]
[1725316522002,1.35389237,2552.2,2551.7,3.13504]
[1725316522349,1.35389237,2552.2,2552.1,0.10072967]
[1725316522506,5.48566,2552.1,2551.6,7.28]
[1725316522713,3.13487,2552.0,2551.6,7.28]
[1725316522910,9.42275224,2552.1,2551.6,7.28]
[1725316523107,6.28799224,2552.1,2551.6,7.28]
[1725316523520,9.42274224,2552.1,2551.6,7.28]
[1725316523731,0.94227422,2552.0,2551.6,7.28]
[1725316524448,0.94227422,2552.0,2551.6,10.41521]
[1725316524651,8.4104,2552.3,2551.7,5.39475]
[1725316524822,8.4104,2552.3,2551.7,8.52977]
[1725316525021,11.54491,2552.3,2551.7,8.52977]
[1725316525332,8.4104,2552.3,2551.7,8.52975]
[1725316525508,12.699381,2552.3,2551.7,8.52975]
[1725316525704,12.699401,2552.3,2551.7,5.39467]
[1725316526143,12.699401,2552.3,2551.7,8.52976]
[1725316527681,3.13455,2552.2,2551.7,5.39467]
[1725316527853,4.4044931,2552.2,2551.7,5.39467]
[1725316528177,3.0,2552.1,2551.7,8.52977]
[1725316529644,3.0,2552.1,2551.7,8.52975]
[1725316530069,4.2699431,2552.2,2551.7,8.52975]
[1725316531779,7.4044931,2552.2,2551.7,5.39467]
[1725316532081,7.4044931,2552.2,2551.8,0.17488674]
[1725316532241,1.28148831,2552.1,2551.8,0.17488674]
[1725316532440,4.28148831,2552.1,2551.7,5.39467]
[1725316532671,4.28148831,2552.1,2551.9,0.17477066]
[1725316532887,4.28148831,2552.1,2551.7,5.39467]
[1725316533087,7.41615831,2552.1,2552.0,0.1746546]
[1725316533679,7.41615831,2552.1,2551.6,10.41525]
[1725316534195,7.41615831,2552.1,2551.7,0.17502363]
[1725316534379,0.74161583,2552.0,2551.7,0.17502363]
[1725316534581,3.04261583,2552.0,2551.7,0.17502363]
[1725316534803,6.17742583,2552.0,2551.7,0.17502363]
[1725316536170,3.04261583,2552.0,2551.7,0.17502363]
[1725316536692,6.17742583,2552.0,2551.7,0.17502363]
[1725316539654,6.17742583,2552.0,2551.5,3.13534]
[1725316539889,6.17742583,2552.0,2551.8,0.1750116]
[1725316540223,6.17742583,2552.0,2550.8,5.39087]
[1725316540224,5.60382,2551.4,2550.8,5.39087]
[1725316540356,3.1358,2551.2,2550.6,8.52755]
[1725316540856,3.1358,2551.2,2550.6,8.52756]
[1725316541984,3.1358,2551.2,2550.7,3.13638]
[1725316542211,5.6038,2551.4,2550.8,3.13625]
[1725316542212,8.73944,2551.4,2550.8,3.13625]
[1725316542503,1.01235637,2551.3,2550.8,3.13625]
[1725316542858,4.14805637,2551.3,2550.8,3.13625]
[1725316543900,3.13578,2551.2,2550.6,8.52751]
[1725316544198,3.13578,2551.2,2550.6,5.39109]
[1725316545059,3.13578,2551.2,2550.7,3.13635]
[1725316546113,4.14801637,2551.3,2550.8,3.13624]
[1725316547235,4.11096164,2551.2,2550.6,8.52748]
[1725316547523,3.13578,2551.2,2550.6,8.52748]
[1725316547898,6.27164,2551.2,2550.6,5.39109]
[1725316548098,3.13578,2551.2,2550.6,5.39109]
[1725316548412,3.13591,2551.1,2550.6,5.39109]
[1725316549053,5.62091,2551.1,2550.6,5.39109]
[1725316549242,3.13603,2551.0,2550.6,3.13639]
[1725316550523,6.248079,2551.1,2550.6,3.13639]
[1725316550726,6.248079,2551.1,2550.7,0.17700715]
[1725316552413,5.62091,2551.1,2550.7,0.17700715]
[1725316553407,3.13621,2550.9,2550.7,0.17700715]
[1725316553753,3.13646,2550.7,2550.2,3.1369]
[1725316554715,5.933191,2550.8,2550.2,6.27382]
[1725316554716,9.069521,2550.8,2550.2,6.27382]
[1725316555045,5.933191,2550.8,2550.2,6.27382]
[1725316555407,2.4833,2550.8,2550.4,3.1367]
[1725316557410,5.61957,2550.8,2550.4,3.1367]
[1725316557611,5.61957,2550.8,2550.2,6.27379]
[1725316557818,5.61957,2550.8,2550.3,3.13687]
[1725316558650,8.7559,2550.8,2550.3,3.13687]
[1725316559014,8.7559,2550.8,2550.2,3.13689]
[1725316559516,3.13654,2550.6,2550.1,12.88957]
[1725316560118,3.13654,2550.6,2550.1,9.7525]
[1725316560317,3.13665,2550.5,2550.1,9.7525]
[1725316560843,3.13665,2550.5,2550.1,12.88961]
[1725316561044,3.13665,2550.5,2550.1,9.7525]
[1725316562055,3.13665,2550.5,2550.2,0.17805673]
[1725316562344,6.27293,2550.7,2550.2,0.17805673]
[1725316562580,6.49524,2550.8,2550.2,3.31495673]
[1725316562844,3.0,2550.7,2550.2,3.31495673]
[1725316563521,3.0,2550.7,2550.3,3.13681]
[1725316564050,3.0,2550.7,2550.4,3.31458429]
[1725316564371,3.0,2550.8,2550.4,3.31458429]
[1725316566839,3.0,2550.8,2550.5,2.3858]
[1725316567044,3.0,2550.8,2550.5,2.56350809]
[1725316569934,3.0,2550.8,2550.5,5.70012809]
[1725316570573,3.0,2550.9,2550.5,5.70012809]
[1725316570868,3.0,2550.9,2550.6,3.13648]
[1725316571085,3.0,2550.9,2550.6,1.10074454]
[1725316571292,5.42759,2551.3,2550.8,3.13626]
[1725316571432,3.0,2551.2,2550.8,3.13626]
[1725316571638,3.0,2551.2,2550.9,0.17732667]
[1725316573292,3.0,2551.2,2551.0,2.4072]
[1725316573577,5.43192,2551.8,2551.2,3.13569]
[1725316573980,5.43192,2551.8,2551.3,0.17673193]
[1725316574486,5.43192,2551.8,2551.4,0.17661581]
[1725316574783,5.43192,2551.8,2551.2,3.13569]
[1725316574979,7.13027737,2551.7,2551.5,0.1764997]
[1725316575322,0.99509737,2551.7,2551.6,0.1763836]
[1725316575484,2.2968,2551.8,2551.6,0.1763836]
[1725316575690,2.2968,2551.8,2551.3,3.1356]
[1725316575843,2.2968,2551.8,2551.7,0.1762675]
[1725316576039,2.97838537,2551.8,2551.3,3.1356]
[1725316576283,6.11348537,2551.8,2551.7,0.1762675]
[1725316576497,6.11348537,2551.8,2551.2,6.2714]
[1725316576705,3.0,2551.7,2551.2,6.2714]
[1725316577152,3.0,2551.7,2551.3,0.17673193]
[1725316577349,3.0,2551.7,2551.3,3.31231193]
[1725316577553,3.0,2551.7,2551.2,3.13569]
[1725316577791,3.13518,2551.7,2551.4,0.17661581]
[1725316577961,6.2704,2551.7,2551.3,0.17614366]
[1725316578165,6.27041,2551.7,2551.5,0.17591143]
[1725316578389,7.56554237,2551.7,2551.4,0.17602754]
[1725316578686,7.56554237,2551.7,2551.5,0.17591143]
[1725316578986,7.56553237,2551.7,2551.2,3.13569]
[1725316579199,4.43031237,2551.7,2551.6,0.17579533]
[1725316579410,7.56555237,2551.7,2551.2,3.13569]
[1725316579705,3.13518,2551.7,2551.2,3.13569]
[1725316580003,3.13518,2551.7,2551.3,0.17614366]
[1725316580367,3.13518,2551.7,2551.2,3.13569]
[1725316580565,3.13518,2551.7,2551.4,0.17602754]
[1725316580784,3.13518,2551.7,2551.3,0.17614366]
[1725316580984,3.13518,2551.7,2551.5,0.17591143]
[1725316581260,7.56554037,2551.7,2551.6,0.17579533]
[1725316581464,7.56554037,2551.7,2551.2,3.13569]
[1725316581699,3.13518,2551.7,2551.6,0.17579533]
[1725316581903,3.13518,2551.7,2551.2,3.13569]
[1725316582080,3.13518,2551.7,2551.6,0.17579533]
[1725316582268,3.13518,2551.7,2551.2,3.13569]
[1725316582470,3.13518,2551.7,2551.6,0.17579533]
[1725316582766,4.43029137,2551.7,2551.2,3.13569]
[1725316582969,4.43029137,2551.7,2551.6,0.17579533]
[1725316583166,4.43029137,2551.7,2551.2,3.13569]
[1725316583477,3.13528,2551.6,2551.2,3.13569]
[1725316583680,3.13528,2551.6,2551.3,0.17614366]
[1725316583977,4.42150314,2551.6,2551.0,8.67908]
[1725316584302,2.2697,2551.5,2551.0,8.67908]
[1725316584490,2.2697,2551.5,2551.1,0.17634991]
[1725316587214,3.13565,2551.3,2551.1,0.17634991]
[1725316587511,3.13565,2551.3,2550.8,3.13622]
[1725316587808,3.13565,2551.3,2551.2,0.1762702]
[1725316588107,3.13565,2551.3,2551.2,0.17627541]
[1725316588310,3.13565,2551.3,2550.8,3.13622]
[1725316588463,3.13565,2551.3,2551.2,0.17627541]
[1725316588670,3.13565,2551.3,2550.8,3.13622]
[1725316588896,3.13565,2551.3,2551.2,0.17627541]
[1725316589112,3.13565,2551.3,2550.8,6.27242]
[1725316589317,3.13565,2551.3,2551.2,0.17627541]
[1725316589484,3.13565,2551.3,2550.8,3.1362]
[1725316589684,3.13565,2551.3,2551.2,0.17627541]
[1725316589915,3.13565,2551.3,2550.8,3.1362]
[1725316590135,3.13565,2551.3,2551.2,0.17627541]
[1725316590359,3.13565,2551.3,2550.8,3.1362]
[1725316590482,3.13565,2551.3,2551.2,0.17627541]
[1725316590683,3.989727,2551.3,2550.8,3.1362]
[1725316590882,3.13565,2551.3,2551.2,0.17640553]
[1725316591114,3.13565,2551.3,2550.8,3.1362]
[1725316591424,3.13565,2551.3,2551.2,0.17640553]
[1725316591906,5.40512,2551.5,2551.0,3.13593]
[1725316592112,5.40512,2551.5,2551.2,0.17642635]
[1725316592288,5.40512,2551.5,2551.0,6.27188]
[1725316592492,5.40512,2551.5,2551.3,0.17631022]
[1725316592712,5.40512,2551.5,2551.0,3.13593]
[1725316592881,5.40512,2551.5,2551.4,0.1761941]
[1725316593222,6.259148,2551.5,2551.4,0.1761941]
[1725316593387,6.259148,2551.5,2551.0,3.13593]
[1725316593584,5.40512,2551.5,2551.1,0.17654249]
[1725316595188,3.13557,2551.4,2551.1,0.17654249]
[1725316595500,3.13557,2551.4,2550.9,3.13613]
[1725316595812,3.13557,2551.4,2550.9,4.00733]
[1725316596230,3.13557,2551.4,2551.0,0.17665864]
[1725316597900,3.13566,2551.3,2551.0,0.17665864]
[1725316598104,2.3533,2551.2,2550.6,3.13643]
[1725316598427,3.37129,2551.1,2550.6,3.13643]
[1725316598608,3.13596,2551.1,2550.6,6.27287]
[1725316598931,6.13528,2551.7,2551.2,3.1357]
[1725316599103,3.13525,2551.7,2551.3,0.627158]
[1725316599430,3.13524,2551.7,2551.1,6.27171]
[1725316599733,3.13524,2551.7,2551.2,3.13576]
[1725316599734,3.0,2551.6,2551.2,3.13576]
[1725316604032,3.0,2551.6,2551.1,3.13582]
[1725316604242,2.3533,2551.5,2551.1,3.13582]
[1725316606334,2.3533,2551.5,2551.1,6.27165]
[1725316606535,3.0,2551.6,2551.2,0.70555637]
[1725316606807,5.488,2551.6,2551.2,0.627165]
[1725316607011,2.488,2551.6,2551.3,3.31189817]
[1725316609825,3.13542,2551.5,2551.3,0.17625817]
[1725316610026,0.70075437,2551.4,2550.9,6.2721]
[1725316610261,3.13542,2551.5,2551.0,3.31242401]
[1725316621174,3.13542,2551.5,2551.0,0.17641401]
[1725316621175,3.1356,2551.4,2551.0,0.17641401]
[1725316621376,2.3891,2551.2,2551.0,0.17641401]
[1725316621873,2.3891,2551.2,2551.1,0.17628747]
[1725316622118,2.3891,2551.2,2550.8,7.28]
[1725316622322,2.3891,2551.2,2551.1,0.17628747]
[1725316622522,2.3891,2551.2,2550.8,7.28]
[1725316622691,2.3891,2551.2,2551.1,0.17628747]
[1725316622890,5.52487,2551.2,2550.7,3.13627]
[1725316623218,5.52487,2551.2,2551.1,0.17628747]
[1725316623219,6.390929,2551.2,2551.1,0.17628747]
[1725316623673,6.390929,2551.2,2550.6,5.84869]
[1725316623873,5.52487,2551.2,2551.1,0.17628747]
[1725316624075,5.52487,2551.2,2550.6,5.84869]
[1725316624285,5.52487,2551.2,2551.1,0.17628747]
[1725316624480,5.52487,2551.2,2550.6,5.84869]
[1725316624725,5.52487,2551.2,2551.1,0.17628747]
[1725316624880,6.390929,2551.2,2550.6,5.84869]
[1725316625083,5.52487,2551.2,2551.1,0.17628747]
[1725316625316,5.52487,2551.2,2550.6,5.84869]
[1725316625519,5.52487,2551.2,2551.1,0.17628747]
[1725316625717,3.1359,2551.1,2550.6,5.45549]
[1725316626124,6.2719,2551.1,2550.5,12.89746]
[1725316626331,3.13603,2551.0,2550.5,12.89746]
[1725316626529,3.13603,2551.0,2550.5,5.61746]
[1725316626823,8.5389,2550.9,2550.3,3.13681]
[1725316627392,3.13627,2550.8,2550.3,3.13681]
[1725316627728,5.40266,2550.9,2550.2,1.46339504]
[1725316627729,5.40266,2550.9,2550.2,3.13696]
[1725316628110,5.40266,2550.9,2550.2,3.53016]
[1725316628999,3.13642,2550.7,2550.2,3.53016]
[1725316629201,3.13642,2550.7,2550.2,4.042031]
[1725316629381,3.13627,2550.8,2550.3,3.13688]
[1725316631291,3.1364,2550.7,2550.2,0.905071]
[1725316632035,3.1364,2550.7,2550.1,8.65756]
[1725316632036,5.50892,2550.6,2550.1,5.52051]
[1725316632326,2.3724,2550.6,2550.2,3.13699]
[1725316634291,3.1364,2550.7,2550.2,3.13699]
[1725316635935,5.47789,2550.8,2550.3,3.13687]
[1725316637004,5.47789,2550.8,2550.4,0.17782427]
[1725316639715,3.13663,2550.5,2550.4,0.17782427]
[1725316639900,3.13677,2550.4,2550.0,7.28]
[1725316640127,3.13677,2550.4,2550.1,0.17816252]
[1725316643648,5.52184,2550.5,2550.1,0.17816252]
[1725316644854,3.13641,2550.7,2550.2,5.3904]
[1725316645356,3.0,2550.6,2550.3,0.17821654]
[1725316645512,3.0,2550.6,2550.2,5.3904]
[1725316646054,3.0,2550.6,2550.3,0.17821654]
[1725316646353,3.0,2550.6,2550.2,5.3904]
[1725316646526,3.0,2550.6,2550.4,0.17810032]
[1725316646855,3.0,2550.6,2550.2,5.3904]
[1725316647055,3.0,2550.6,2550.5,0.17798412]
[1725316647260,3.0,2550.6,2550.2,5.3904]
[1725316647456,3.0,2550.6,2550.5,0.17798412]
[1725316647624,3.0,2550.6,2550.2,5.3904]
[1725316647820,3.0,2550.6,2550.5,0.17798412]
[1725316648006,6.13655,2550.6,2550.1,3.13712]
[1725316648348,6.13655,2550.6,2550.0,3.13719]
[1725316648349,5.50244,2550.5,2550.0,3.13719]
[1725316648539,5.50244,2550.5,2550.0,6.27436]
[1725316648741,5.50244,2550.5,2550.0,3.13717]
[1725316650152,5.50244,2550.5,2550.1,3.13712]
[1725316650657,5.50244,2550.5,2550.0,3.13717]
[1725316651911,5.50244,2550.5,2550.1,0.17844899]
[1725316653856,3.1369,2550.3,2550.1,0.17844899]
[1725316654233,3.1369,2550.3,2549.8,10.41743]
[1725316654565,3.1369,2550.3,2549.8,7.28]
[1725316654761,3.1369,2550.3,2549.8,10.41749]
[1725316654923,3.1369,2550.3,2549.9,0.17868148]
[1725316658868,5.39892,2550.2,2549.9,0.17868148]
[1725316659658,5.39892,2550.2,2549.6,8.63874]
[1725316659659,5.39892,2550.2,2549.7,3.13761]
[1725316659970,3.13726,2550.0,2549.6,3.13767]
[1725316660119,3.13726,2550.0,2549.7,0.17925253]
[1725316661458,3.13726,2550.0,2549.5,3.53106]
[1725316661459,2.2619,2549.9,2549.5,3.53106]
[1725316661643,2.2619,2549.9,2549.8,0.17922483]
[1725316661855,2.2619,2549.9,2549.5,3.53106]
[1725316661856,2.2619,2549.9,2549.5,0.3932]
[1725316662058,2.2619,2549.9,2549.8,0.17922483]
[1725316662374,2.2619,2549.9,2549.5,0.3932]
[1725316662531,2.2619,2549.9,2549.8,0.17922483]
[1725316662731,2.2619,2549.9,2549.5,3.53106]
[1725316665429,3.13726,2550.0,2549.6,0.17945738]
[1725316667481,6.2746,2550.0,2549.6,0.17945738]
[1725316667648,3.13726,2550.0,2549.6,0.17945738]
[1725316668269,6.27457,2550.0,2549.6,0.17945738]
[1725316668774,3.13726,2550.0,2549.6,0.17945738]
[1725316668969,3.13726,2550.0,2549.6,1.03195511]
[1725316669174,3.13726,2550.0,2549.7,0.17934631]
[1725316669673,3.13726,2550.0,2549.5,3.13786]
[1725316669842,3.13726,2550.0,2549.8,0.17938636]
[1725316670030,3.13726,2550.0,2549.5,3.13786]
[1725316670230,3.13726,2550.0,2549.6,0.1796189]
[1725316678675,6.2746,2550.0,2549.6,0.1796189]
[1725316678968,3.13743,2549.9,2549.6,0.1796189]
[1725316679294,5.63221,2549.8,2549.3,7.28]
[1725316679496,5.63221,2549.8,2549.7,0.1794922]
[1725316680099,8.76977,2549.8,2549.3,7.28]
[1725316680266,5.63221,2549.8,2549.7,0.1794922]
[1725316680465,5.63221,2549.8,2549.3,7.28]
[1725316680712,5.63221,2549.8,2549.7,0.1794922]
[1725316681237,5.63221,2549.8,2549.3,7.28]
[1725316681546,8.76977,2549.8,2549.4,0.18020582]
[1725316682041,8.76979,2549.8,2549.4,0.18020582]
[1725316682244,3.13764,2549.7,2549.4,0.18020582]
[1725316682546,6.27574,2549.5,2549.4,0.18020582]
[1725316684147,3.13787,2549.5,2549.4,0.18020582]
[1725316688338,10.06956371,2549.5,2549.4,0.18020582]
[1725316688711,3.13812,2549.3,2549.0,19.52]
[1725316688919,3.13812,2549.3,2548.8,6.27732]
[1725316689222,5.54805,2549.2,2548.7,10.41877]
[1725316689409,3.278317,2549.2,2548.6,2.4769]
[1725316689614,2.4097,2549.2,2548.8,3.13866]
[1725316689847,3.13812,2549.3,2548.8,3.13866]
[1725316690222,6.27634,2549.3,2548.8,3.13866]
[1725316690552,3.13812,2549.3,2548.8,6.27733]
[1725316690856,3.13812,2549.3,2548.8,3.13866]
[1725316693963,3.13812,2549.3,2548.8,6.27732]
[1725316694263,2.4097,2549.4,2548.9,3.13859]
[1725316694555,8.54775,2549.4,2548.9,3.13859]
[1725316697155,8.54775,2549.4,2549.0,0.18115068]